Cogmind - Beta 14 @@@ ROGUE MODE // 2024.10.05 @ 00:42:02 Player: Kiwi Result: Destroyed by G-47 Trooper with Particle Gun Performance ------------- Evolutions (2) 1000 Regions Visited (3) 600 Robots Destroyed (28) 140 Value Destroyed (893) 893 Prototype IDs (3) 60 Alien Tech Used (0) 0 Bonus (200) 200 TOTAL SCORE: 2893 Bonus ------- Pacifist 200 Cogmind --------- Core Integrity 0/550 Matter 109/300 Energy 100/100 System Corruption 1% Temperature Cool (9) Movement Treading (240) Ox1 Location -8/Materials Parts ------- > --- POWER (2) -------- (None) > --- PROPULSION (2) --- Light Treads > --- UTILITY (4) ------ Large Storage Unit Terrain Scan Processor Utility Shielding > --- WEAPON (3) ------- (None) > --- INVENTORY (15) --- Signal Interpreter Signal Interpreter Seismic Detector Transport Network Coupler Melee Analysis Suite Tractor Beam Faulty Improved EM Shotgun Improved Grenade Launcher Peak State ------------ > --- POWER ------------ Light Ion Engine Improved Ion Engine > --- PROPULSION ------- Wheel Wheel > --- UTILITY ---------- Large Storage Unit Structural Scanner Terrain Scan Processor Utility Shielding > --- WEAPON ----------- Assault Cannon Flak Cannon Improved Datajack > --- INVENTORY -------- Light Nuclear Core Aluminum Leg Signal Interpreter Signal Interpreter Seismic Detector Transport Network Coupler Tractor Beam Improved EM Shotgun Medium Laser Assault Cannon [Rating: 20] Favorites ----------- Power Light Ion Engine Engine Light Ion Engine Power Core Light Nuclear Core Propulsion Wheel Treads Light Treads Leg Aluminum Leg Wheel Wheel Utility Utility Shielding Device Structural Scanner Storage Large Storage Unit Processor Terrain Scan Processor Protection Utility Shielding Weapon Flak Cannon Energy Gun Medium Laser Ballistic Gun Light Assault Rifle Ballistic Cannon Flak Cannon Special Melee Weapon Improved Datajack Build | -11 -10 -9 -8 ------- Run | Yrd Mat Mat Mat Slots Evolved 4 | . . 2 2 Power 1 | . . . 1 Propulsion . | . . . . Utility 2 | . . 2 . Weapon 1 | . . . 1 Parts Attached 35 | 4 4 11 16 Power 8 | 1 . 2 5 Engine 6 | 1 . 2 3 Core 2 | . . . 2 Reactor . | . . . . Propulsion 9 | 2 . 2 5 Treads 1 | . . . 1 Leg 4 | . . 2 2 Wheel 4 | 2 . . 2 Hover . | . . . . Flight . | . . . . Utility 5 | 1 2 2 . Device 1 | . . 1 . Storage 2 | 1 1 . . Processor 1 | . . 1 . Hackware . | . . . . Protection 1 | . 1 . . Artifact . | . . . . Weapon 13 | . 2 5 6 Energy Gun 3 | . . 1 2 Energy Cannon . | . . . . Ballistic Gun 5 | . 2 2 1 Ballistic Cannon 4 | . . 2 2 Launcher . | . . . . Special Weapon . | . . . . Impact Weapon . | . . . . Slashing Weapon . | . . . . Piercing Weapon . | . . . . Special Melee Weapon 1 | . . . 1 Unidentified Prototypes 1 | . . 1 . Parts Lost 23 | . . 5 18 Power 7 | . . 1 6 Propulsion 6 | . . 2 4 Utility 1 | . . . 1 Weapon 9 | . . 2 7 Highest Loss Streak 7 | . . 3 7 To Critical Strikes . | . . . . Average Slot Usage (%) 87 | . 70 98 83 Engine 11 | . 14 10 11 Leg 9 | . . 13 7 Wheel 9 | . 28 8 5 Device 7 | . . 11 7 Storage 10 | . 14 11 9 Processor 8 | . . 11 9 Protection 10 | . 11 11 9 Ballistic Gun 8 | . 1 13 5 Ballistic Cannon 9 | . . 8 14 Peak Build Rating 20 | 4 8 15 20 Average Rating 12 | 3 5 12 15 On Entrance 6 | . 4 8 15 Naked Turns . | . . . . Heaviest Build 46 | 8 26 39 46 Greatest Support 20 | 20 20 20 20 Greatest Overweight (x) 13 | . 1 8 13 Average Overweight (x) 1 | . . 1 2 Largest Inventory Capacity 15 | 8 15 15 15 Average Capacity 14 | 6 10 15 15 Most Carried 15 | 6 15 15 12 Average Carried 9 | 4 7 11 8 Final Capacity 15 | 8 15 15 15 Final Carried 14 | 6 14 10 8 Class Distribution -------------------- 64% | Mutant 13% | Scavenger-Tank 11% | Tank 10% | Scavenger-Mutant Dominant Class ---------------- Mutant | -10/Materials Mutant | -9/Materials Mutant | -8/Materials Resources | -11 -10 -9 -8 ----------- Run | Yrd Mat Mat Mat Matter Collected 938 | 240 40 194 464 Remotely . | . . . . Salvage Created 704 | . . 318 386 Parts 39 | . . 14 25 Haulers Intercepted . | . . . . Recyclers Shooed 1 | . . 1 . Parts Field Recycled . | . . . . Retrieved Matter . | . . . . Parts Self-Destructed . | . . . . Prevented . | . . . . Kills | -11 -10 -9 -8 ------- Run | Yrd Mat Mat Mat Combat Hostiles Destroyed 27 | . . 11 16 Guns 11 | . . 5 6 Cannons 15 | . . 6 9 AOE 1 | . . . 1 Classes Destroyed 6 | . . 4 2 Watcher 1 | . . 1 . Swarmer 9 | . . 3 6 Grunt 12 | . . 7 5 Duelist 2 | . . 1 1 Sentry 2 | . . . 2 Hunter 2 | . . . 2 Best Kill Streak 4 | . . 4 4 Combat Bots Only 4 | . . 4 4 Max Kills in Single Turn 1 | . . 1 1 Gunslinging . | . . . . Exploded 1 | . . . 1 Melee . | . . . . Uniques/NPCs Destroyed . | . . . . Combat | -11 -10 -9 -8 -------- Run | Yrd Mat Mat Mat Hostile Shots Fired 293 | . . 88 205 Missed 84 | . . 29 55 Damage Taken 2662 | . . 726 1936 Core 792 | . . 228 564 Absorbed by Shields . | . . . . Redirected to Shielding 43 | . . 3 40 Core Remaining (%) 81 | 100 100 43 . Volleys Fired 101 | . . 43 58 Largest 3 | . . 2 3 Hottest 108 | . . 64 108 Shots Fired 194 | . . 79 115 Gun 94 | . . 57 37 Cannon 100 | . . 22 78 Launcher . | . . . . Special . | . . . . Kinetic 177 | . . 79 98 Thermal 17 | . . . 17 Explosive . | . . . . Electromagnetic . | . . . . Robot Hit Streak 14 | . . 10 14 Robot Miss Streak 18 | . . 18 13 Penetration Max . | . . . . Secondary Targets . | . . . . Shots Hit Robots 128 | . . 54 74 Core Hits 75 | . . 31 44 Critical Kills . | . . . . Critical Parts Destroyed . | . . . . Critical Strikes 3 | . . . 3 Burn 2 | . . . 2 Blast 1 | . . . 1 Melee Attacks 1 | . . . 1 Impact . | . . . . Slashing . | . . . . Piercing . | . . . . Sneak Attacks . | . . . . Combat Hostiles . | . . . . Follow-up Attacks . | . . . . Damage Inflicted 1764 | . . 642 1122 Guns 651 | . . 334 317 Cannons 1054 | . . 298 756 Explosions 45 | . . . 45 Melee . | . . . . Ramming 14 | . . 10 4 Kinetic 1503 | . . 632 871 Thermal 202 | . . . 202 Explosive . | . . . . Electromagnetic 45 | . . . 45 Impact . | . . . . Slashing . | . . . . Piercing . | . . . . Highest Corruption 1 | . . . 1 Average Corruption 1 | . . . 1 Corruption Purged . | . . . . Corruption Blocked . | . . . . Effects 3 | . . . 3 Matter Fused 1 | . . . 1 Parts Rejected 1 | . . . 1 Weapon Failures 1 | . . . 1 Overload Shots . | . . . . Overflow Damage 6 | . . . 6 Projectiles . | . . . . Explosions 6 | . . . 6 Melee . | . . . . Knockbacks 25 | . . 7 18 Impact . | . . . . Kinetic 24 | . . 6 18 Secondary 1 | . . 1 . Self-Inflicted Damage 91 | . . . 91 Shots 3 | . . . 3 Rammed 1 | . . . 1 Targets Rammed 2 | . . 1 1 Kicked 1 | . . 1 . Crushed . | . . . . Highest Temperature 249 | . . 42 249 Average Temperature 56 | . . 15 67 Received Heat Transfer 981 | . . 252 729 Effects 1 | . . . 1 Energy Bleed 1 | . . . 1 Siege Activations . | . . . . Robots Corrupted . | . . . . Combat Hostiles . | . . . . Parts Fried . | . . . . Impact Corruptions . | . . . . Robots Melted . | . . . . Combat Hostiles . | . . . . Parts Melted . | . . . . Heat Transferred 740 | . . . 740 Parts Sabotaged . | . . . . Parts Stolen . | . . . . Parts Stripped . | . . . . Power Chain Reactions 1 | . . . 1 Alert | -11 -10 -9 -8 ------- Run | Yrd Mat Mat Mat Peak Influence 329 | . 15 207 329 Initial 29 | . . 5 29 Average 98 | . 5 73 163 Maximum Alert Level 1 | . . 1 1 Low Security (%) 80 | 100 100 93 59 Level 1 19 | . . 6 40 Level 2 . | . . . . Level 3 . | . . . . Level 4 . | . . . . Level 5 . | . . . . High Security . | . . . . Max Security . | . . . . Squads Dispatched 6 | . . 2 4 Investigation 2 | . . 1 1 Extermination . | . . . . Reinforcement 4 | . . 1 3 Assault . | . . . . Garrison . | . . . . Intercept . | . . . . Searches Triggered . | . . . . Construction Impeded . | . . . . Haulers Reinforced . | . . . . Active Scanning Responses . | . . . . Cargo Convoy Interrupts . | . . . . Stealth | -11 -10 -9 -8 --------- Run | Yrd Mat Mat Mat Distress Signals 5 | . . 3 2 Communications Jammed . | . . . . Distress Signals . | . . . . Times Spotted 51 | . 2 21 28 Peak Tracking Total 6 | . 1 4 6 Tactical Retreats 2 | . . . 2 Traps | -11 -10 -9 -8 ------- Run | Yrd Mat Mat Mat Traps Triggered . | . . . . Indirectly . | . . . . Trap Hack Attempts . | . . . . Triggered . | . . . . Disarmed . | . . . . Reprogrammed . | . . . . Reused . | . . . . Traps Extracted . | . . . . Installed . | . . . . Triggered . | . . . . Machines | -11 -10 -9 -8 ---------- Run | Yrd Mat Mat Mat Machines Disabled 2 | . . . 2 Max in Single Turn 2 | . . . 2 Machines Repaired . | . . . . Machines Dismantled . | . . . . Machines Sabotaged . | . . . . Overloaded Fab Kills . | . . . . Hacking | -11 -10 -9 -8 --------- Run | Yrd Mat Mat Mat Machines Accessed 7 | . 2 3 2 Terminals 6 | . 2 3 1 Fabricators . | . . . . Repair Stations . | . . . . Recycling Units . | . . . . Scanalyzers 1 | . . . 1 Garrison Access . | . . . . Total Hacks 19 | . 4 7 8 Successful 12 | . 3 3 6 Failed 7 | . 1 4 2 Catastrophic 1 | . . 1 . Database Lockouts . | . . . . Manual . | . . . . Terminals 17 | . 4 7 6 Fabricators . | . . . . Repair Stations . | . . . . Recycling Units . | . . . . Scanalyzers 2 | . . . 2 Garrison Access . | . . . . Terminal Hacks 10 | . 3 3 4 Record 4 | . . 1 3 Robot Analysis 1 | . 1 . . Prototype ID Bank 1 | . 1 . . Locate Traps 2 | . 1 1 . Maintenance Status 1 | . . 1 . Recall Investigation 1 | . . . 1 Fabricator Hacks . | . . . . Repair Station Hacks . | . . . . Recycling Unit Hacks . | . . . . Scanalyzer 2 | . . . 2 Insert Component 1 | . . . 1 Analyze 1 | . . . 1 Garrison Access Hacks . | . . . . Unauthorized Hacks . | . . . . Terminals . | . . . . Fabricators . | . . . . Repair Stations . | . . . . Recycling Units . | . . . . Scanalyzers . | . . . . Garrison Access . | . . . . Data Cores Recovered . | . . . . Used . | . . . . Hacking Detections 4 | . 1 2 1 Full Trace Events 2 | . . 1 1 Feedback Events . | . . . . Feedback Blocked . | . . . . Robot Schematics Acquired . | . . . . Robots Built . | . . . . Authchips . | . . . . Time . | . . . . Total Robot Build Rating . | . . . . Part Schematics Acquired 1 | . . . 1 Parts Built . | . . . . Authchips . | . . . . Time . | . . . . Total Part Build Rating . | . . . . Parts Repaired . | . . . . Time . | . . . . Parts Recycled . | . . . . Recycled Matter . | . . . . Retrieved Matter . | . . . . Retrieved Components . | . . . . Parts Scanalyzed 1 | . . . 1 Part Schematics Acquired 1 | . . . 1 Parts Damaged . | . . . . Bothacking | -11 -10 -9 -8 ------------ Run | Yrd Mat Mat Mat Used RIF Installer . | . . . . Robots Hacked 1 | . . . 1 Non-combat . | . . . . Combat 1 | . . . 1 Robot Hacks Applied 1 | . . . 1 parse_system 1 | . . . 1 Relay Couplers Released . | . . . . Fabnet Peak Effective % . | . . . . Robots Rewired . | . . . . Allies Hacked . | . . . . Hacks Repelled . | . . . . Allies | -11 -10 -9 -8 -------- Run | Yrd Mat Mat Mat Total Allies . | . . . . Largest Group . | . . . . Highest-Rated Group . | . . . . Highest-Rated Ally . | . . . . Total Orders . | . . . . Ally Attacks . | . . . . Total Damage . | . . . . Kills . | . . . . Allies Corrupted . | . . . . Allies Melted . | . . . . Intel | -11 -10 -9 -8 ------- Run | Yrd Mat Mat Mat Robot Analysis Total 1 | . 1 . . Derelict Logs Recovered . | . . . . Drone Launches . | . . . . Drone Recoveries . | . . . . Exploration | -11 -10 -9 -8 ------------- Run | Yrd Mat Mat Mat Turns Passed 1424 | 60 205 563 596 Spaces Moved 789 | 59 220 303 207 Core 25 | 10 . 1 14 Treads 4 | . . . 4 Legs 214 | . . 137 77 Wheels 546 | 49 220 165 112 Hover . | . . . . Flight . | . . . . Fastest Speed 50 | 50 80 95 95 Average Speed 133 | 74 83 139 193 Slowest Speed 700 | 80 95 450 700 Overloaded Moves . | . . . . Propulsion Burnouts . | . . . . Robots Hopped . | . . . . Cave-ins Triggered . | . . . . Exploration Rate (%) 25 | 4 48 29 19 Regions Visited 3 Branch Regions . Pre-discovered Areas . | . . . . Known Exits Taken . | . . . . Unknown Exits Taken 3 | 1 1 1 . Scrap Searched . | . . . . Spaces Dug . | . . . . Terrain Destroyed 8 | . . . 8 Melee . | . . . . Projectile 4 | . . . 4 AOE 4 | . . . 4 Terrain Rammed . | . . . . Walls Destroyed . | . . . . Machines Disabled . | . . . . Actions | -11 -10 -9 -8 --------- Run | Yrd Mat Mat Mat Total 995 | 74 240 377 304 Wait 26 | 2 4 13 7 Move 786 | 58 219 302 207 Hop . | . . . . Pick Up 39 | 10 12 5 12 Fast Attach . | . . . . Attach 34 | 4 3 11 16 Detach 4 | . . 2 2 Swap 1 | . 1 . . Drop 1 | . 1 . . Fire 101 | . . 43 58 Melee 1 | . . . 1 Ram 1 | . . . 1 Kick 1 | . . 1 . Crush . | . . . . Escape Stasis . | . . . . Rewire . | . . . . Trap . | . . . . Miscellaneous . | . . . . Route ------- -11/Scrapyard -10/Materials (discovered 2 exits: *Mat x2) -9/Materials -8/Materials History --------- Turn | Location | Event 31 | -11/Scrapyard | Discovered new exit (range 15) 61 | -11/Scrapyard | Entered Materials 147 | -10/Materials | Discovered new exit (range 16) 230 | -10/Materials | Discovered new exit (range 16) 266 | -10/Materials | Entered another Materials area 266 | -9/Materials | Evolved 2 slots: Utility x2 307 | -9/Materials | Build established: Mutant 520 | -9/Materials | Lost 3 parts (2n1w) 716 | -9/Materials | Core integrity fell below 50% 751 | -9/Materials | Discovered new exit (range 12) 829 | -9/Materials | Entered another Materials area 829 | -8/Materials | Evolved 2 slots: Power x1, Weapon x1 1270 | -8/Materials | Lost 7 parts (2p1n4w) 1333 | -8/Materials | Core integrity fell below 50% 1361 | -8/Materials | Lost 6 parts (2p1n1u2w) 1397 | -8/Materials | Core integrity fell below 20% 1425 | -8/Materials | Destroyed by G-47 Trooper with Particle Gun Last Messages --------------- 01385_ Critical hit (Burn: +37). 01390_ G-47 Trooper suffers critical hit (Burn). 01400_ G-47 Trooper heat spikes uncontrollably. 01400_ Aluminum Leg destroyed. 01401_ G-47 Trooper overheating. 01402_ Med. Laser destroyed. 01405_ G-47 Trooper heat short circuits Aluminum Leg. 01405_ Critical hit (Burn: +37). 01412_ G-47 Trooper heat damages Lgt. Nuclear Core, Aluminum Leg, Broken Aluminum Leg, Imp. Heat Sink. 01413_ G-47 Trooper overheating. 01415_ Acquired Lgt. Treads. 01416_ G-47 Trooper heat short circuits Lgt. Nuclear Core. 01416_ G-47 Trooper overheating. 01417_ G-47 Trooper heat damages Particle Gun, Aluminum Leg, Broken Lgt. Nuclear Core, Broken Aluminum Leg. Map ----- +----------------------------------------------------+ | ???????????????????????????????????????## ##+## | | ????????????????????????? ????????????## # # | | ?????????????????????????? ????????????## # # | | ????????????????????????? ???????????## #! # | | ????????????????????????### #########??## # !# | | ????????????????????????###+#########??## + # | | ????????????????????????## ###### #### ! # | | ???????????????????????? # """ ###### #### ! # | | ???????????????????????? # """ + ######## | | ???????????????????????? # """ ######+######## | | ???????????????????????? #"S # ##??? | | ???????????????????????? #""" # "T" ##??? | | ???????????????????????? # "" [ # """ ##??? | | ??????????????????? ## # # ##??? | | ??????????????????? ####+######+###############??? | | ??????????????????? # % ##??? | | ??????????????????? + % % ##??? | | ??????????????????? # % ##??? | | ??????????????????? ###########r########## ##??? | | ??????????????????? #### % ######### ? ##??? | | ?????????????????????### ###?????????????? | | ?????????????????????### ###?????????????? | | ??????????????????###### ## ?????????????? | | ??????????????? %##### ## ?????????????? | | ???????????????? T + g/ %## ?????????????? | | ??????????????? ##### @ ## ?????????????? | | ?????????????????? ##### ##??????????????? | | ?????????????????????###/##########??????????????? | | ??????????????????????##g##########??????????????? | | ???????????????????#####/##??????????????????????? | | ???????????????????# #??????????????????????? | | ???????????????????#""" #??????????????????????? | | ???????????????????#"""g #??????????????????????? | | ???????????????????#""" #??????????????????????? | | ???????????????????# #?????????????????????? | | ???????????????????# ##?????????????????????? | | ???????????????????#+##+###??????????????????????? | | ???????????????????# ????????????????????????? | | ???????????????????+? ????????????????????????? | | ???????????????????? ????????????????????????? | | ???????????????????####+#????????????????????????? | | ?????????????????????? ?????????????????????????? | | ?????????????????????? ]?????????????????????????? | | ?????????????????????? ?????????????????????????? | | ?????????????????????? ?????????????????????????? | | ?????????????????????? ?????????????????????????? | | ?????????????????????????????????????????????????? | | ?????????????????????????????????????????????????? | | ?????????????????????????????????????????????????? | | ?????????????????????????????????????????????????? | +----------------------------------------------------+ Best States ------------- Heat Dissipation 31 Energy Generation 23 Energy Capacity 290 Matter Stores 300 Matter Capacity 300 Sight Range 16 Terrain Scan Density 85 Utility Shielding 33 Evasion (%) 50 Recoil Reduction 1 Item Schematics ----------------- Imp. EM Shotgun | -8/Materials | Scanalyzed Robot Schematics ------------------ None Fabricated ------------ Nothing Alien Tech Used ----------------- None Achievements -------------- Oops Challenges ------------ None Game ------ Seed RainbowHelicalThermoblaster Manual? 0 Play Time 00:32:54 Cumulative 4.2 hours Start 2024.10.05 @ 00:03:11 End 2024.10.05 @ 00:42:02 Sessions 1 Manual Loads 0 Difficulty Rogue Special Mode None Game No. 7 Rogue 7 Adventurer 0 Explorer 0 Win Type - Total 0 Types 0/0/0/0/0/0/0/0/0 Lore% 2 Gallery% 7 Achievement% 5 Wizard Run 0 Options --------- Layout 1 ASCII 0 Keyboard 0 Movement Mouse Keybinds 0 Fullscreen 1 Font 24/Smallcaps Map View 50x35 Zoom Use 0% Tactical HUD 1 Map Filters NONE Filters NONE Steam 1 RUN: 65e51981-d6ba-425e-aa56-ce8c35c15fd2